[Event "Titled Tuesday Blitz April 4 Late 2023"]
[White "WindWhistler11"]
[Black "Di Berardino, Diego Rafael"]
[BlackFideId "2105446"]
[WhiteElo "2454"]
[BlackElo "2432"]
[Result "0-1"]
[Round "05"]
[TimeControl "180+2"]
[Date "2023.04.04"]
[WhiteClock "0:00:01"]
[BlackClock "0:00:07"]

1. Nf3 {[%clk 0:02:59]}  d5 {[%clk 0:02:57]} 2. c4 {[%clk 0:02:58]}  e6 {[%clk 0:02:55]} 3. g3 {[%clk 0:02:57]}  Nf6 {[%clk 0:02:55]} 4. Bg2 {[%clk 0:02:57]}  Be7 {[%clk 0:02:55]} 5. O-O {[%clk 0:02:57]}  O-O {[%clk 0:02:56]} 6. Qc2 {[%clk 0:02:56]}  d4 {[%clk 0:02:54]} 7. d3 {[%clk 0:02:50]}  c5 {[%clk 0:02:53]} 8. e3 {[%clk 0:02:47]}  Nc6 {[%clk 0:02:53]} 9. exd4 {[%clk 0:02:46]}  cxd4 {[%clk 0:02:54]} 10. Re1 {[%clk 0:02:46]}  Re8 {[%clk 0:02:48]} 11. a3 {[%clk 0:02:44]}  a5 {[%clk 0:02:47]} 12. Nbd2 {[%clk 0:02:36]}  Nd7 {[%clk 0:02:41]} 13. Rb1 {[%clk 0:02:12]}  a4 {[%clk 0:02:34]} 14. h4 {[%clk 0:01:51]}  e5 {[%clk 0:02:27]} 15. Ne4 {[%clk 0:01:43]}  h6 {[%clk 0:02:22]} 16. b4 {[%clk 0:01:14]}  axb3 {[%clk 0:02:22]} 17. Qxb3 {[%clk 0:01:14]}  Bf8 {[%clk 0:02:14]} 18. Ra1 {[%clk 0:01:03]}  f5 {[%clk 0:02:06]} 19. Ned2 {[%clk 0:01:00]}  Nc5 {[%clk 0:02:04]} 20. Qc2 {[%clk 0:01:00]}  e4 {[%clk 0:01:38]} 21. dxe4 {[%clk 0:00:58]}  fxe4 {[%clk 0:01:38]} 22. Nh2 {[%clk 0:00:48]}  d3 {[%clk 0:01:19]} 23. Qd1 {[%clk 0:00:42]}  Bf5 {[%clk 0:01:12]} 24. Ndf1 {[%clk 0:00:41]}  Nd4 {[%clk 0:01:10]} 25. Ne3 {[%clk 0:00:40]}  Bh7 {[%clk 0:01:06]} 26. Rb1 {[%clk 0:00:39]}  Kh8 {[%clk 0:01:03]} 27. Bb2 {[%clk 0:00:37]}  Ne2+ {[%clk 0:00:55]} 28. Kh1 {[%clk 0:00:37]}  Na4 {[%clk 0:00:52]} 29. Qd2 {[%clk 0:00:32]}  Nxb2 {[%clk 0:00:51]} 30. Qxb2 {[%clk 0:00:32]}  Ra7 {[%clk 0:00:40]} 31. Nhg4 {[%clk 0:00:30]}  Re6 {[%clk 0:00:25]} 32. Nd5 {[%clk 0:00:25]}  Bxa3 {[%clk 0:00:22]} 33. Qa1 {[%clk 0:00:20]}  Bc5 {[%clk 0:00:22]} 34. Qb2 {[%clk 0:00:19]}  h5 {[%clk 0:00:21]} 35. Nge3 {[%clk 0:00:19]}  Qf8 {[%clk 0:00:18]} 36. Rxe2 {[%clk 0:00:18]}  dxe2 {[%clk 0:00:17]} 37. Qxe2 {[%clk 0:00:19]}  Qf7 {[%clk 0:00:15]} 38. Rb5 {[%clk 0:00:17]}  Ra1+ {[%clk 0:00:15]} 39. Kh2 {[%clk 0:00:17]}  Bxe3 {[%clk 0:00:16]} 40. Nxe3 {[%clk 0:00:17]}  Re8 {[%clk 0:00:15]} 41. Rxh5 {[%clk 0:00:17]}  Kg8 {[%clk 0:00:13]} 42. Rg5 {[%clk 0:00:12]}  Kh8 {[%clk 0:00:13]} 43. Bh3 {[%clk 0:00:08]}  Ra6 {[%clk 0:00:11]} 44. Bf5 {[%clk 0:00:08]}  Rf6 {[%clk 0:00:12]} 45. Qg4 {[%clk 0:00:07]}  g6 {[%clk 0:00:11]} 46. Bd7 {[%clk 0:00:04]}  Rxf2+ {[%clk 0:00:11]} 47. Kh3 {[%clk 0:00:04]}  Rf8 {[%clk 0:00:11]} 48. Be6 {[%clk 0:00:02]}  Qe8 {[%clk 0:00:10]} 49. h5 {[%clk 0:00:01]}  gxh5 {[%clk 0:00:09]} 50. Rxh5 {[%clk 0:00:01]}  Qe7 {[%clk 0:00:07]} 0-1


[Site "https://www.chess.com"]

[Event "Titled Tuesday Blitz April 4 Late 2023"]
[White "Kavutskiy, Konstantin"]
[Black "Martin Barcelo, Carles"]
[WhiteFideId "2026384"]
[BlackFideId "24561444"]
[WhiteElo "2323"]
[BlackElo "2089"]
[Result "1-0"]
[Round "05"]
[TimeControl "180+2"]
[Date "2023.04.04"]
[WhiteClock "0:00:08"]
[BlackClock "0:00:04"]

1. d4 {[%clk 0:03:00]}  Nf6 {[%clk 0:02:56]} 2. Bg5 {[%clk 0:03:00]}  e6 {[%clk 0:02:55]} 3. Nd2 {[%clk 0:03:00]}  d5 {[%clk 0:02:53]} 4. e3 {[%clk 0:03:00]}  c5 {[%clk 0:02:52]} 5. c3 {[%clk 0:02:59]}  Nbd7 {[%clk 0:02:51]} 6. Bd3 {[%clk 0:02:59]}  b6 {[%clk 0:02:50]} 7. f4 {[%clk 0:02:57]}  Bb7 {[%clk 0:02:47]} 8. Ngf3 {[%clk 0:02:57]}  Be7 {[%clk 0:02:42]} 9. O-O {[%clk 0:02:56]}  O-O {[%clk 0:02:41]} 10. Ne5 {[%clk 0:02:53]}  Ne4 {[%clk 0:02:37]} 11. Bxe7 {[%clk 0:02:47]}  Qxe7 {[%clk 0:02:38]} 12. Bxe4 {[%clk 0:02:13]}  dxe4 {[%clk 0:02:36]} 13. Ndc4 {[%clk 0:02:06]}  Ba6 {[%clk 0:02:20]} 14. Qa4 {[%clk 0:01:51]}  Nxe5 {[%clk 0:02:19]} 15. fxe5 {[%clk 0:01:49]}  Bxc4 {[%clk 0:02:00]} 16. Qxc4 {[%clk 0:01:50]}  Qg5 {[%clk 0:01:59]} 17. Rf4 {[%clk 0:01:48]}  cxd4 {[%clk 0:01:50]} 18. cxd4 {[%clk 0:01:44]}  Rac8 {[%clk 0:01:48]} 19. Qe2 {[%clk 0:01:45]}  Qg6 {[%clk 0:01:27]} 20. Raf1 {[%clk 0:01:44]}  f5 {[%clk 0:01:18]} 21. exf6 {[%clk 0:01:38]}  Rxf6 {[%clk 0:01:18]} 22. Rxf6 {[%clk 0:01:27]}  gxf6 {[%clk 0:01:19]} 23. h3 {[%clk 0:01:10]}  f5 {[%clk 0:01:16]} 24. Kh2 {[%clk 0:01:08]}  Qg5 {[%clk 0:01:12]} 25. Rf4 {[%clk 0:01:05]}  Kh8 {[%clk 0:00:43]} 26. Qf2 {[%clk 0:01:02]}  Rg8 {[%clk 0:00:29]} 27. d5 {[%clk 0:00:51]}  exd5 {[%clk 0:00:26]} 28. Rxf5 {[%clk 0:00:50]}  Qd8 {[%clk 0:00:25]} 29. Qf4 {[%clk 0:00:36]}  Qb8 {[%clk 0:00:23]} 30. Qxb8 {[%clk 0:00:36]}  Rxb8 {[%clk 0:00:22]} 31. Rxd5 {[%clk 0:00:37]}  Rc8 {[%clk 0:00:23]} 32. Rd2 {[%clk 0:00:34]}  Rf8 {[%clk 0:00:18]} 33. Kg3 {[%clk 0:00:31]}  Rf7 {[%clk 0:00:16]} 34. Rd4 {[%clk 0:00:23]}  Rc7 {[%clk 0:00:15]} 35. Rxe4 {[%clk 0:00:19]}  Rc2 {[%clk 0:00:16]} 36. Rb4 {[%clk 0:00:20]}  Kg7 {[%clk 0:00:15]} 37. Kf3 {[%clk 0:00:20]}  Kf6 {[%clk 0:00:14]} 38. a3 {[%clk 0:00:20]}  Ke5 {[%clk 0:00:14]} 39. h4 {[%clk 0:00:20]}  Rc1 {[%clk 0:00:11]} 40. Rb5+ {[%clk 0:00:19]}  Kf6 {[%clk 0:00:10]} 41. g4 {[%clk 0:00:19]}  Rh1 {[%clk 0:00:09]} 42. h5 {[%clk 0:00:19]}  Ke6 {[%clk 0:00:07]} 43. Ke4 {[%clk 0:00:18]}  Rc1 {[%clk 0:00:07]} 44. b3 {[%clk 0:00:17]}  Rg1 {[%clk 0:00:07]} 45. Kf4 {[%clk 0:00:15]}  h6 {[%clk 0:00:05]} 46. Re5+ {[%clk 0:00:14]}  Kf6 {[%clk 0:00:04]} 47. Re8 {[%clk 0:00:11]}  Rf1+ {[%clk 0:00:04]} 48. Ke4 {[%clk 0:00:11]}  Rb1 {[%clk 0:00:04]} 49. Rg8 {[%clk 0:00:11]}  Rxb3 {[%clk 0:00:03]} 50. Rg6+ {[%clk 0:00:12]}  Kf7 {[%clk 0:00:04]} 51. Rxh6 {[%clk 0:00:13]}  Rxa3 {[%clk 0:00:03]} 52. Kf4 {[%clk 0:00:11]}  Ra1 {[%clk 0:00:02]} 53. g5 {[%clk 0:00:10]}  Rf1+ {[%clk 0:00:02]} 54. Ke5 {[%clk 0:00:10]}  Rg1 {[%clk 0:00:01]} 55. g6+ {[%clk 0:00:09]}  Kg8 {[%clk 0:00:02]} 56. Rh7 {[%clk 0:00:09]}  a5 {[%clk 0:00:03]} 57. Rb7 {[%clk 0:00:06]}  a4 {[%clk 0:00:02]} 58. Kf6 {[%clk 0:00:05]}  Rf1+ {[%clk 0:00:02]} 59. Kg5 {[%clk 0:00:05]}  Rg1+ {[%clk 0:00:02]} 60. Kh6 {[%clk 0:00:06]}  Rf1 {[%clk 0:00:02]} 61. Rb8+ {[%clk 0:00:05]}  Rf8 {[%clk 0:00:02]} 62. Rxf8+ {[%clk 0:00:06]}  Kxf8 {[%clk 0:00:03]} 63. Kh7 {[%clk 0:00:07]}  a3 {[%clk 0:00:04]} 64. g7+ {[%clk 0:00:07]}  Ke7 {[%clk 0:00:04]} 65. g8=Q {[%clk 0:00:08]} 1-0


[Site "https://www.chess.com"]

[Event "Titled Tuesday Blitz April 4 Late 2023"]
[White "Romkachess"]
[Black "Fiorito, Francisco"]
[BlackFideId "180165"]
[WhiteElo "2445"]
[BlackElo "2341"]
[Result "1-0"]
[Round "05"]
[TimeControl "180+2"]
[Date "2023.04.04"]
[WhiteClock "0:00:18"]
[BlackClock "0:00:06"]

1. e4 {[%clk 0:02:59]}  e5 {[%clk 0:02:58]} 2. d4 {[%clk 0:02:55]}  exd4 {[%clk 0:02:55]} 3. Qxd4 {[%clk 0:02:56]}  Nc6 {[%clk 0:02:54]} 4. Qe3 {[%clk 0:02:56]}  g6 {[%clk 0:02:51]} 5. Nc3 {[%clk 0:02:55]}  Bg7 {[%clk 0:02:51]} 6. Bd2 {[%clk 0:02:54]}  Nge7 {[%clk 0:02:49]} 7. h4 {[%clk 0:02:53]}  h5 {[%clk 0:02:48]} 8. O-O-O {[%clk 0:02:52]}  d6 {[%clk 0:02:49]} 9. Kb1 {[%clk 0:02:51]}  Be6 {[%clk 0:02:49]} 10. Nh3 {[%clk 0:02:50]}  Qd7 {[%clk 0:02:40]} 11. Ng5 {[%clk 0:02:49]}  O-O-O {[%clk 0:02:38]} 12. Nxe6 {[%clk 0:02:48]}  fxe6 {[%clk 0:02:34]} 13. Bb5 {[%clk 0:02:42]}  Rdf8 {[%clk 0:02:29]} 14. f3 {[%clk 0:02:42]}  Kb8 {[%clk 0:02:28]} 15. Be1 {[%clk 0:02:35]}  Nc8 {[%clk 0:02:20]} 16. Ba4 {[%clk 0:02:17]}  Nb6 {[%clk 0:02:19]} 17. Bb3 {[%clk 0:02:17]}  Be5 {[%clk 0:02:16]} 18. Ne2 {[%clk 0:02:04]}  Qg7 {[%clk 0:02:13]} 19. Bc3 {[%clk 0:02:01]}  Qf6 {[%clk 0:02:06]} 20. Rhf1 {[%clk 0:01:48]}  Re8 {[%clk 0:01:57]} 21. g3 {[%clk 0:01:44]}  Rhf8 {[%clk 0:01:57]} 22. f4 {[%clk 0:01:44]}  Bxc3 {[%clk 0:01:55]} 23. Qxc3 {[%clk 0:01:35]}  Qe7 {[%clk 0:01:52]} 24. Nd4 {[%clk 0:01:33]}  Nxd4 {[%clk 0:01:52]} 25. Qxd4 {[%clk 0:01:33]}  a6 {[%clk 0:01:49]} 26. c3 {[%clk 0:01:32]}  Nd7 {[%clk 0:01:41]} 27. Qd2 {[%clk 0:01:23]}  Nc5 {[%clk 0:01:37]} 28. Bc2 {[%clk 0:01:22]}  Rd8 {[%clk 0:01:18]} 29. Qe3 {[%clk 0:01:21]}  Nd7 {[%clk 0:01:07]} 30. Bb3 {[%clk 0:01:15]}  Nf6 {[%clk 0:01:01]} 31. Bc2 {[%clk 0:01:15]}  e5 {[%clk 0:01:01]} 32. f5 {[%clk 0:01:14]}  gxf5 {[%clk 0:01:01]} 33. Rxf5 {[%clk 0:01:14]}  Rg8 {[%clk 0:00:57]} 34. Rdf1 {[%clk 0:01:11]}  Rg6 {[%clk 0:00:54]} 35. Qf3 {[%clk 0:01:02]}  Rf8 {[%clk 0:00:44]} 36. a4 {[%clk 0:00:48]}  Qg7 {[%clk 0:00:39]} 37. Rxh5 {[%clk 0:00:22]}  Rxg3 {[%clk 0:00:35]} 38. Qf5 {[%clk 0:00:17]}  Nxh5 {[%clk 0:00:30]} 39. Qxf8+ {[%clk 0:00:17]}  Qxf8 {[%clk 0:00:31]} 40. Rxf8+ {[%clk 0:00:17]}  Ka7 {[%clk 0:00:32]} 41. Rh8 {[%clk 0:00:17]}  Nf4 {[%clk 0:00:27]} 42. h5 {[%clk 0:00:17]}  Rh3 {[%clk 0:00:24]} 43. h6 {[%clk 0:00:18]}  Ng6 {[%clk 0:00:25]} 44. Rh7 {[%clk 0:00:18]}  Kb6 {[%clk 0:00:24]} 45. Bb3 {[%clk 0:00:18]}  Rh4 {[%clk 0:00:19]} 46. a5+ {[%clk 0:00:18]}  Kxa5 {[%clk 0:00:18]} 47. Rxc7 {[%clk 0:00:19]}  Rxh6 {[%clk 0:00:13]} 48. Rxb7 {[%clk 0:00:19]}  Nf4 {[%clk 0:00:13]} 49. Bc2 {[%clk 0:00:17]}  Rh1+ {[%clk 0:00:13]} 50. Ka2 {[%clk 0:00:18]}  Nd3 {[%clk 0:00:06]} 51. b4+ {[%clk 0:00:18]}  Nxb4+ {[%clk 0:00:06]} 52. cxb4# {[%clk 0:00:18]} 1-0


[Site "https://www.chess.com"]

[Event "Titled Tuesday Blitz April 4 Late 2023"]
[White "Ambartsumova, Karina"]
[Black "reevecanada"]
[WhiteFideId "4166299"]
[WhiteElo "2240"]
[BlackElo "2444"]
[Result "1-0"]
[Round "05"]
[TimeControl "180+2"]
[Date "2023.04.04"]
[WhiteClock "0:00:15"]
[BlackClock "0:00:01"]

1. e4 {[%clk 0:02:59]}  c5 {[%clk 0:02:59]} 2. Nf3 {[%clk 0:02:58]}  d6 {[%clk 0:02:58]} 3. Bb5+ {[%clk 0:02:58]}  Bd7 {[%clk 0:02:58]} 4. Bxd7+ {[%clk 0:02:58]}  Qxd7 {[%clk 0:02:58]} 5. c3 {[%clk 0:02:58]}  Nf6 {[%clk 0:02:57]} 6. Qe2 {[%clk 0:02:59]}  e6 {[%clk 0:02:54]} 7. d4 {[%clk 0:02:59]}  cxd4 {[%clk 0:02:54]} 8. cxd4 {[%clk 0:03:00]}  d5 {[%clk 0:02:54]} 9. e5 {[%clk 0:02:59]}  Ne4 {[%clk 0:02:55]} 10. O-O {[%clk 0:02:59]}  Be7 {[%clk 0:02:55]} 11. Ne1 {[%clk 0:02:59]}  Nc6 {[%clk 0:02:51]} 12. Be3 {[%clk 0:02:59]}  f6 {[%clk 0:02:51]} 13. f3 {[%clk 0:02:50]}  Ng5 {[%clk 0:02:50]} 14. h4 {[%clk 0:02:24]}  Nf7 {[%clk 0:02:48]} 15. f4 {[%clk 0:02:25]}  f5 {[%clk 0:02:37]} 16. Nf3 {[%clk 0:02:24]}  Nh6 {[%clk 0:02:36]} 17. Nc3 {[%clk 0:02:20]}  Ng4 {[%clk 0:02:35]} 18. Rac1 {[%clk 0:02:19]}  O-O {[%clk 0:02:33]} 19. g3 {[%clk 0:02:17]}  a6 {[%clk 0:02:31]} 20. Kg2 {[%clk 0:02:17]}  Rac8 {[%clk 0:02:31]} 21. Bg1 {[%clk 0:02:17]}  b5 {[%clk 0:02:28]} 22. Nb1 {[%clk 0:01:59]}  Na5 {[%clk 0:02:25]} 23. Nbd2 {[%clk 0:01:59]}  g6 {[%clk 0:02:20]} 24. Nb3 {[%clk 0:01:45]}  Nxb3 {[%clk 0:02:10]} 25. axb3 {[%clk 0:01:46]}  Rxc1 {[%clk 0:02:07]} 26. Rxc1 {[%clk 0:01:47]}  Rc8 {[%clk 0:02:06]} 27. Qd2 {[%clk 0:01:42]}  Kg7 {[%clk 0:02:04]} 28. Rc2 {[%clk 0:01:37]}  h6 {[%clk 0:01:30]} 29. Qc1 {[%clk 0:01:33]}  Rxc2+ {[%clk 0:01:28]} 30. Qxc2 {[%clk 0:01:34]}  Kf7 {[%clk 0:01:27]} 31. Ne1 {[%clk 0:01:31]}  g5 {[%clk 0:01:21]} 32. hxg5 {[%clk 0:01:32]}  hxg5 {[%clk 0:01:21]} 33. Nd3 {[%clk 0:01:32]}  Ke8 {[%clk 0:01:15]} 34. b4 {[%clk 0:01:26]}  Kd8 {[%clk 0:01:11]} 35. Nc5 {[%clk 0:01:24]}  Qc8 {[%clk 0:01:11]} 36. Qd2 {[%clk 0:01:20]}  gxf4 {[%clk 0:00:53]} 37. Qxf4 {[%clk 0:01:20]}  Bxc5 {[%clk 0:00:48]} 38. bxc5 {[%clk 0:01:21]}  Kd7 {[%clk 0:00:47]} 39. Qg5 {[%clk 0:01:18]}  Qf8 {[%clk 0:00:38]} 40. Qg6 {[%clk 0:01:18]}  a5 {[%clk 0:00:30]} 41. c6+ {[%clk 0:01:15]}  Kxc6 {[%clk 0:00:12]} 42. Qxe6+ {[%clk 0:01:15]}  Kc7 {[%clk 0:00:13]} 43. Qxd5 {[%clk 0:01:15]}  Qb4 {[%clk 0:00:13]} 44. Qf7+ {[%clk 0:00:58]}  Kb8 {[%clk 0:00:13]} 45. Qxf5 {[%clk 0:00:46]}  Qxb2+ {[%clk 0:00:12]} 46. Kh3 {[%clk 0:00:47]}  Qc1 {[%clk 0:00:13]} 47. Kxg4 {[%clk 0:00:38]}  Qxg1 {[%clk 0:00:12]} 48. Qf4 {[%clk 0:00:20]}  Qd1+ {[%clk 0:00:11]} 49. Kg5 {[%clk 0:00:20]}  Kc8 {[%clk 0:00:10]} 50. e6 {[%clk 0:00:20]}  Qe2 {[%clk 0:00:09]} 51. Qf8+ {[%clk 0:00:16]}  Kc7 {[%clk 0:00:08]} 52. Qf7+ {[%clk 0:00:16]}  Kb6 {[%clk 0:00:03]} 53. e7 {[%clk 0:00:16]}  Qe3+ {[%clk 0:00:02]} 54. Kg6 {[%clk 0:00:16]}  Qxg3+ {[%clk 0:00:02]} 55. Kh7 {[%clk 0:00:15]}  Qh4+ {[%clk 0:00:02]} 56. Kg7 {[%clk 0:00:15]}  Qg5+ {[%clk 0:00:01]} 57. Qg6+ {[%clk 0:00:15]} 1-0


[Site "https://www.chess.com"]

[Event "Titled Tuesday Blitz April 4 Late 2023"]
[White "Rastbod, Ali"]
[Black "Hajiyev, Kanan"]
[WhiteFideId "12567477"]
[BlackFideId "13404148"]
[WhiteElo "2248"]
[BlackElo "2103"]
[Result "1-0"]
[Round "05"]
[TimeControl "180+2"]
[Date "2023.04.04"]
[WhiteClock "0:01:29"]
[BlackClock "0:00:02"]

1. e4 {[%clk 0:02:59]}  c5 {[%clk 0:02:55]} 2. Nc3 {[%clk 0:02:59]}  Nc6 {[%clk 0:02:50]} 3. g3 {[%clk 0:02:59]}  d6 {[%clk 0:02:48]} 4. Bg2 {[%clk 0:02:58]}  g6 {[%clk 0:02:47]} 5. d3 {[%clk 0:02:57]}  Bg7 {[%clk 0:02:46]} 6. Be3 {[%clk 0:02:58]}  e6 {[%clk 0:02:44]} 7. Qd2 {[%clk 0:02:58]}  Nd4 {[%clk 0:02:40]} 8. Nd1 {[%clk 0:02:58]}  h6 {[%clk 0:02:24]} 9. c3 {[%clk 0:02:57]}  Nc6 {[%clk 0:02:20]} 10. Ne2 {[%clk 0:02:58]}  Nf6 {[%clk 0:02:15]} 11. h3 {[%clk 0:02:58]}  Qc7 {[%clk 0:01:57]} 12. O-O {[%clk 0:02:55]}  b6 {[%clk 0:01:50]} 13. d4 {[%clk 0:02:07]}  Ba6 {[%clk 0:01:46]} 14. Re1 {[%clk 0:02:05]}  g5 {[%clk 0:01:18]} 15. b4 {[%clk 0:01:58]}  c4 {[%clk 0:00:26]} 16. d5 {[%clk 0:01:47]}  Ne5 {[%clk 0:00:10]} 17. Nd4 {[%clk 0:01:48]}  Nd3 {[%clk 0:00:06]} 18. dxe6 {[%clk 0:01:48]}  Nxe1 {[%clk 0:00:06]} 19. exf7+ {[%clk 0:01:48]}  Kxf7 {[%clk 0:00:06]} 20. Qxe1 {[%clk 0:01:48]}  Rhe8 {[%clk 0:00:07]} 21. Nf5 {[%clk 0:01:45]}  Bb7 {[%clk 0:00:05]} 22. Nxg7 {[%clk 0:01:45]}  Kxg7 {[%clk 0:00:06]} 23. Bd4 {[%clk 0:01:46]}  Kg6 {[%clk 0:00:05]} 24. f3 {[%clk 0:01:46]}  d5 {[%clk 0:00:04]} 25. e5 {[%clk 0:01:46]}  Nd7 {[%clk 0:00:05]} 26. f4 {[%clk 0:01:46]}  gxf4 {[%clk 0:00:05]} 27. gxf4 {[%clk 0:01:47]}  Kh7 {[%clk 0:00:05]} 28. Ne3 {[%clk 0:01:44]}  Qc6 {[%clk 0:00:05]} 29. Qh4 {[%clk 0:01:41]}  Qg6 {[%clk 0:00:05]} 30. Kh2 {[%clk 0:01:41]}  Rg8 {[%clk 0:00:05]} 31. Rf1 {[%clk 0:01:34]}  Qd3 {[%clk 0:00:05]} 32. e6 {[%clk 0:01:29]}  Nf8 {[%clk 0:00:02]} 33. Qe7+ {[%clk 0:01:28]}  Kg6 {[%clk 0:00:02]} 34. Qf7# {[%clk 0:01:29]} 1-0


[Site "https://www.chess.com"]

[Event "Titled Tuesday Blitz April 4 Late 2023"]
[White "Mirimanian, Hayk"]
[Black "Harriott, Tyrell"]
[WhiteFideId "4700180"]
[BlackFideId "2086484"]
[WhiteElo "2280"]
[BlackElo "2107"]
[Result "0-1"]
[Round "05"]
[TimeControl "180+2"]
[Date "2023.04.04"]
[WhiteClock "0:00:06"]
[BlackClock "0:00:38"]

1. d4 {[%clk 0:03:00]}  e6 {[%clk 0:02:57]} 2. Nf3 {[%clk 0:02:58]}  d5 {[%clk 0:02:56]} 3. c4 {[%clk 0:02:58]}  c6 {[%clk 0:02:50]} 4. Nc3 {[%clk 0:02:55]}  f5 {[%clk 0:02:49]} 5. Bg5 {[%clk 0:02:48]}  Be7 {[%clk 0:02:42]} 6. Bxe7 {[%clk 0:02:36]}  Nxe7 {[%clk 0:02:41]} 7. e3 {[%clk 0:02:33]}  Ng6 {[%clk 0:02:41]} 8. g3 {[%clk 0:02:31]}  O-O {[%clk 0:02:40]} 9. h4 {[%clk 0:02:26]}  Nh8 {[%clk 0:02:35]} 10. Bd3 {[%clk 0:02:10]}  Nf7 {[%clk 0:02:34]} 11. Qc2 {[%clk 0:02:02]}  Na6 {[%clk 0:02:31]} 12. a3 {[%clk 0:02:02]}  Nc7 {[%clk 0:02:30]} 13. O-O-O {[%clk 0:02:00]}  dxc4 {[%clk 0:02:29]} 14. Bxc4 {[%clk 0:02:00]}  Nd5 {[%clk 0:02:30]} 15. Kb1 {[%clk 0:02:00]}  a6 {[%clk 0:02:27]} 16. Bd3 {[%clk 0:01:58]}  b5 {[%clk 0:02:27]} 17. g4 {[%clk 0:01:58]}  Nh6 {[%clk 0:02:18]} 18. Ne5 {[%clk 0:01:54]}  Nxg4 {[%clk 0:02:12]} 19. Nxg4 {[%clk 0:01:53]}  Nxc3+ {[%clk 0:02:08]} 20. bxc3 {[%clk 0:01:54]}  fxg4 {[%clk 0:02:07]} 21. Bxh7+ {[%clk 0:01:55]}  Kh8 {[%clk 0:02:07]} 22. Rdg1 {[%clk 0:01:49]}  e5 {[%clk 0:01:59]} 23. Be4 {[%clk 0:01:45]}  Be6 {[%clk 0:01:49]} 24. h5 {[%clk 0:01:32]}  Qe7 {[%clk 0:01:39]} 25. Kb2 {[%clk 0:01:17]}  a5 {[%clk 0:01:33]} 26. Bxc6 {[%clk 0:01:13]}  b4 {[%clk 0:01:13]} 27. c4 {[%clk 0:01:01]}  bxa3+ {[%clk 0:01:12]} 28. Ka2 {[%clk 0:01:01]}  Rab8 {[%clk 0:01:12]} 29. Rb1 {[%clk 0:01:00]}  exd4 {[%clk 0:01:03]} 30. exd4 {[%clk 0:01:00]}  Rb4 {[%clk 0:00:59]} 31. d5 {[%clk 0:01:00]}  Bf5 {[%clk 0:00:57]} 32. Qc3 {[%clk 0:00:56]}  Bxb1+ {[%clk 0:00:54]} 33. Rxb1 {[%clk 0:00:57]}  Rxf2+ {[%clk 0:00:52]} 34. Ka1 {[%clk 0:00:57]}  Rxb1+ {[%clk 0:00:50]} 35. Kxb1 {[%clk 0:00:58]}  Qe2 {[%clk 0:00:40]} 36. Qxa3 {[%clk 0:00:06]}  Qc2+ {[%clk 0:00:39]} 37. Ka1 {[%clk 0:00:06]}  Rf1+ {[%clk 0:00:38]} 0-1


[Site "https://www.chess.com"]

[Event "Titled Tuesday Blitz April 4 Late 2023"]
[White "Goncalves, Davi Sulzbacher"]
[Black "Han, Yichen"]
[WhiteFideId "2154510"]
[BlackFideId "1054430"]
[WhiteElo "2182"]
[BlackElo "2342"]
[Result "0-1"]
[Round "05"]
[TimeControl "180+2"]
[Date "2023.04.04"]
[WhiteClock "0:00:21"]
[BlackClock "0:00:26"]

1. d4 {[%clk 0:03:00]}  e6 {[%clk 0:02:59]} 2. Nf3 {[%clk 0:03:00]}  f5 {[%clk 0:02:58]} 3. c4 {[%clk 0:02:59]}  Nf6 {[%clk 0:02:57]} 4. Nc3 {[%clk 0:02:59]}  c6 {[%clk 0:02:58]} 5. Bf4 {[%clk 0:02:57]}  d5 {[%clk 0:02:58]} 6. e3 {[%clk 0:02:57]}  Bd6 {[%clk 0:02:56]} 7. Bd3 {[%clk 0:02:52]}  O-O {[%clk 0:02:55]} 8. O-O {[%clk 0:02:52]}  Qc7 {[%clk 0:02:50]} 9. Bxd6 {[%clk 0:02:51]}  Qxd6 {[%clk 0:02:51]} 10. Ne5 {[%clk 0:02:43]}  Nbd7 {[%clk 0:02:49]} 11. f4 {[%clk 0:02:40]}  Ne4 {[%clk 0:02:44]} 12. Bxe4 {[%clk 0:02:33]}  fxe4 {[%clk 0:02:42]} 13. c5 {[%clk 0:02:27]}  Qe7 {[%clk 0:02:39]} 14. Nxd7 {[%clk 0:02:13]}  Bxd7 {[%clk 0:02:40]} 15. Qh5 {[%clk 0:02:13]}  Rf5 {[%clk 0:02:29]} 16. Qe2 {[%clk 0:02:12]}  Raf8 {[%clk 0:02:26]} 17. b4 {[%clk 0:02:09]}  Be8 {[%clk 0:02:01]} 18. a4 {[%clk 0:02:04]}  Kh8 {[%clk 0:01:54]} 19. b5 {[%clk 0:02:03]}  g5 {[%clk 0:01:54]} 20. fxg5 {[%clk 0:01:45]}  Qxg5 {[%clk 0:01:55]} 21. Rxf5 {[%clk 0:01:40]}  exf5 {[%clk 0:01:49]} 22. Rf1 {[%clk 0:01:29]}  f4 {[%clk 0:01:44]} 23. Qf2 {[%clk 0:01:22]}  f3 {[%clk 0:01:42]} 24. Ne2 {[%clk 0:01:21]}  Rg8 {[%clk 0:01:33]} 25. Nf4 {[%clk 0:01:19]}  cxb5 {[%clk 0:01:30]} 26. Rb1 {[%clk 0:01:15]}  a6 {[%clk 0:01:15]} 27. g3 {[%clk 0:01:04]}  Bc6 {[%clk 0:01:04]} 28. axb5 {[%clk 0:00:46]}  Bxb5 {[%clk 0:01:05]} 29. Qa2 {[%clk 0:00:42]}  Bc6 {[%clk 0:01:00]} 30. Qf2 {[%clk 0:00:39]}  h5 {[%clk 0:00:59]} 31. Qf1 {[%clk 0:00:38]}  Qg4 {[%clk 0:00:51]} 32. Qh3 {[%clk 0:00:38]}  f2+ {[%clk 0:00:42]} 33. Kf1 {[%clk 0:00:33]}  Bb5+ {[%clk 0:00:42]} 34. Rxb5 {[%clk 0:00:29]}  Qxh3+ {[%clk 0:00:31]} 35. Nxh3 {[%clk 0:00:28]}  axb5 {[%clk 0:00:32]} 36. Nxf2 {[%clk 0:00:27]}  b4 {[%clk 0:00:26]} 37. Ke2 {[%clk 0:00:21]}  Ra8 {[%clk 0:00:26]} 0-1


[Site "https://www.chess.com"]

[Event "Titled Tuesday Blitz April 4 Late 2023"]
[White "micke12a"]
[Black "Omelja, Artem"]
[BlackFideId "14119846"]
[WhiteElo "2349"]
[BlackElo "2404"]
[Result "0-1"]
[Round "05"]
[TimeControl "180+2"]
[Date "2023.04.04"]
[WhiteClock "0:00:55"]
[BlackClock "0:00:49"]

1. e4 {[%clk 0:02:59]}  Nc6 {[%clk 0:02:48]} 2. Nf3 {[%clk 0:02:53]}  e5 {[%clk 0:02:46]} 3. Bb5 {[%clk 0:02:52]}  a6 {[%clk 0:02:47]} 4. Ba4 {[%clk 0:02:52]}  Nf6 {[%clk 0:02:46]} 5. O-O {[%clk 0:02:53]}  Be7 {[%clk 0:02:45]} 6. Bxc6 {[%clk 0:02:53]}  dxc6 {[%clk 0:02:44]} 7. d3 {[%clk 0:02:53]}  Nd7 {[%clk 0:02:28]} 8. Nbd2 {[%clk 0:02:52]}  O-O {[%clk 0:02:27]} 9. Nc4 {[%clk 0:02:51]}  f6 {[%clk 0:02:23]} 10. Nh4 {[%clk 0:02:51]}  Nc5 {[%clk 0:02:22]} 11. Nf5 {[%clk 0:02:48]}  Ne6 {[%clk 0:02:19]} 12. b3 {[%clk 0:02:38]}  Bc5 {[%clk 0:02:18]} 13. Be3 {[%clk 0:02:33]}  b5 {[%clk 0:02:06]} 14. Bxc5 {[%clk 0:02:28]}  Nxc5 {[%clk 0:02:05]} 15. Nce3 {[%clk 0:02:29]}  g6 {[%clk 0:01:47]} 16. Ng3 {[%clk 0:02:27]}  Ne6 {[%clk 0:01:43]} 17. Ne2 {[%clk 0:02:23]}  Nf4 {[%clk 0:01:42]} 18. g3 {[%clk 0:02:13]}  Nxe2+ {[%clk 0:01:38]} 19. Qxe2 {[%clk 0:02:13]}  Be6 {[%clk 0:01:38]} 20. f4 {[%clk 0:02:12]}  exf4 {[%clk 0:01:34]} 21. gxf4 {[%clk 0:02:10]}  f5 {[%clk 0:01:34]} 22. exf5 {[%clk 0:02:08]}  Bxf5 {[%clk 0:01:34]} 23. Qf3 {[%clk 0:02:01]}  Qd4 {[%clk 0:01:31]} 24. Kh1 {[%clk 0:01:56]}  Rae8 {[%clk 0:01:30]} 25. Rae1 {[%clk 0:01:53]}  Bd7 {[%clk 0:01:17]} 26. Ng4 {[%clk 0:01:17]}  Rxe1 {[%clk 0:00:52]} 27. Rxe1 {[%clk 0:01:17]}  Rxf4 {[%clk 0:00:51]} 28. c3 {[%clk 0:00:55]}  Rxf3 {[%clk 0:00:49]} 29. cxd4 {[%clk 0:00:55]}  Bxg4 {[%clk 0:00:49]} 0-1


[Site "https://www.chess.com"]